{"text_format":"1","workbook":"xlsx","n_sheets":2,"sheets":["Def_geom","GenInputFile"],"not_rendered":{"charts":1,"images":11,"macros":1,"external_links":0,"defined_names":85,"comments":1,"pivot_tables":0},"unopened":[],"bounds":{"document_bytes":16777216,"sheet_cells":100000,"rows_first":2000,"rows_last":500,"rows_between":2000,"halvings":0,"cell_chars":16384,"cell_head_chars":4096},"cells_cut":0,"cells_raw":0,"read":"whole","date_system":"1900"}

{"sheet":"Def_geom","index":0,"n_rows":500,"n_cols":33,"rows_kept":500,"cut":false,"hidden":false,"merged":[[1,13,1,16],[1,7,1,10],[1,1,1,5]]}
[]
[null,"Container contour",null,null,null,null,null,"Pre chamber contour",null,null,null,"Circle 2,5",null,"Die contour",null,null,null,"Circle 1,5",null,"File name",null,null,null,null,null,null,"Contur name","Profile type","Node number","Radius/L","H",null,"circle"]
[null,null,null,null,null,null,null,null,null,null,null,null,null,null,null,null,null,null,null,"test1",null,null,null,null,null,null,"Circle 2,5","circle",22,2.5,null,null,"square"]
[null,null,"Radius [mm]","n of elem","n of node",null,null,null,"ne","nh","shift",null,null,null,"ne","nh","shift",null,null,null,null,null,null,null,null,null,"Circle 1,5","circle",21,1.5]
[null,null,5,90,{"$f":"D5+1","v":91},null,null,null,{"$f":"Nh_2-1","v":21},{"$f":"MAX(I8:I500)","v":22},0.1,null,null,null,{"$f":"Nh_3-1","v":20},{"$f":"MAX(O8:O500)","v":21},0.1,null,null,"File name",null,null,null,null,null,null,"Circle 1,0","square",25,1,4]
[null,null,null,null,null,null,null,null,null,null,null,null,null,null,null,null,null,null,null,"die1",null,null,null,null,null,null,"Square","square",16,3,3]
[null,null,"Point nr","Coord x","Coord y",null,null,null,"Point nr","Coord x","Coord y",null,null,null,"Point nr","Coord x","Coord y",null,null,null,null,null,null,null,null,null,"Square 5x5","square",30,5,5]
[null,null,1,5,0,null,null,null,{"$f":"IF(J8<>\"\",1,\"\")","v":1},2.5,0,null,null,null,{"$f":"IF(P8<>\"\",1,\"\")","v":1},1.5,0]
[null,null,{"$f":"IF(D9<>\"\",C8+1,\"\")","v":2},4.9878201484680176,0.34878236055374146,null,null,null,{"$f":"IF(J9<>\"\",I8+1,\"\")","v":2},2.3889320214740914,0.73688791330548331,null,null,null,{"$f":"IF(P9<>\"\",O8+1,\"\")","v":2},1.4265847744427207,0.46352549156245065]
[null,null,{"$f":"IF(D10<>\"\",C9+1,\"\")","v":3},4.9513401985168457,0.69586551189422607,null,null,null,{"$f":"IF(J10<>\"\",I9+1,\"\")","v":3},2.0655969625794324,1.4083001058661548,null,null,null,{"$f":"IF(P10<>\"\",O9+1,\"\")","v":3},1.2135254915623848,0.88167787843876]
[null,null,4,4.8907380104064941,1.0395585298538208,null,null,null,4,1.5587245604184101,1.9545786616937253,null,null,null,4,0.88167787843863443,1.2135254915624758]
[null,null,5,4.8063082695007324,1.378186821937561,null,null,null,5,0.91335264945390182,2.3271843368619378,null,null,null,5,0.46352549156230305,1.4265847744427687]
[null,null,6,4.698462963104248,1.7101006507873535,null,null,null,6,0.18682551850663681,2.4930094716295654,null,null,null,6,-1.5545040027344775E-13,1.5]
[null,null,7,4.5677270889282227,2.0336833000183105,null,null,null,7,-0.5563018712499781,2.4373198862775016,null,null,null,7,-0.46352549156259815,1.4265847744426727]
[null,null,8,4.4147381782531738,2.3473577499389648,null,null,null,8,-1.2499994234089642,2.165063842355984,null,null,null,8,-0.88167787843888523,1.2135254915622937]
[null,null,9,4.2402405738830566,2.6495962142944336,null,null,null,9,-1.8326290973359363,1.7004324719310884,null,null,null,9,-1.2135254915625671,0.88167787843850887]
[null,null,10,4.0450849533081055,2.9389262199401855,null,null,null,10,-2.2524217158087141,1.0847102904247423,null,null,null,10,-1.4265847744428166,0.46352549156215583]
[null,null,11,3.8302223682403564,3.2139379978179932,null,null,null,11,-2.472076881276652,0.37260688809723108,null,null,null,11,-1.5,-3.1090080054689551E-13]
[null,null,12,3.5966989994049072,3.4732918739318848,null,null,null,12,-2.4720772781999614,-0.37260425468245811,null,null,null,12,-1.4265847744426248,-0.46352549156274592]
[null,null,13,3.3456530570983887,3.7157242298126221,null,null,null,13,-2.2524228713102827,-1.0847078910003105,null,null,null,13,-1.2135254915622022,-0.8816778784390108]
[null,null,14,3.0783073902130127,3.9400537014007568,null,null,null,14,-1.8326309087444308,-1.7004305196962801,null,null,null,14,-0.8816778784383833,-1.2135254915626583]
[null,null,15,2.7959644794464111,4.1451878547668457,null,null,null,15,-1.2500017297728727,-2.1650625107753414,null,null,null,15,-0.46352549156200834,-1.4265847744428646]
[null,null,16,2.4999997615814209,4.3301272392272949,null,null,null,16,-0.55630381854143685,-2.4373194418205046,null,null,null,16,4.6601813391295571E-13,-1.5]
[null,null,17,2.1918556690216064,4.4939703941345215,null,null,null,17,0.18682352672186281,-2.4930096208926282,null,null,null,17,0.46352549156289347,-1.4265847744425768]
[null,null,18,1.8730331659317017,4.6359190940856934,null,null,null,18,0.91335079015454024,-2.3271850665823886,null,null,null,18,0.88167787843913614,-1.2135254915621112]
[null,null,19,1.5450848340988159,4.7552824020385742,null,null,null,19,1.5587228686773367,-1.9545800108110933,null,null,null,19,1.2135254915627491,-0.8816778784382584]
[null,null,20,1.2096095085144043,4.8514785766601563,null,null,null,20,2.0655956498936017,-1.4083020312207997,null,null,null,20,1.4265847744429121,-0.46352549156186146]
[null,null,21,0.8682410717010498,4.9240388870239258,null,null,null,21,2.3889312855539977,-0.73689029909568116,null,null,null,21,1.5,0]
[null,null,22,0.52264213562011719,4.9726095199584961,null,null,null,22,2.5,0,null,null,null,""]
[null,null,23,0.17449747025966644,4.9969539642333984,null,null,null,"",null,null,null,null,null,""]
[null,null,24,-0.17449730634689331,4.9969539642333984,null,null,null,"",null,null,null,null,null,""]
[null,null,25,-0.52264255285263062,4.9726095199584961,null,null,null,"",null,null,null,null,null,""]
[null,null,26,-0.86824095249176025,4.9240388870239258,null,null,null,"",null,null,null,null,null,""]
[null,null,27,-1.2096093893051147,4.8514785766601563,null,null,null,"",null,null,null,null,null,""]
[null,null,28,-1.5450851917266846,4.7552824020385742,null,null,null,"",null,null,null,null,null,""]
[null,null,29,-1.8730330467224121,4.6359190940856934,null,null,null,"",null,null,null,null,null,""]
[null,null,30,-2.1918556690216064,4.4939703941345215,null,null,null,"",null,null,null,null,null,""]
[null,null,31,-2.5000002384185791,4.3301267623901367,null,null,null,"",null,null,null,null,null,""]
[null,null,32,-2.7959640026092529,4.1451883316040039,null,null,null,"",null,null,null,null,null,""]
[null,null,33,-3.0783073902130127,3.9400539398193359,null,null,null,"",null,null,null,null,null,""]
[null,null,34,-3.3456532955169678,3.715723991394043,null,null,null,"",null,null,null,null,null,""]
[null,null,35,-3.5966987609863281,3.4732921123504639,null,null,null,"",null,null,null,null,null,""]
[null,null,36,-3.8302221298217773,3.2139379978179932,null,null,null,"",null,null,null,null,null,""]
[null,null,37,-4.0450849533081055,2.9389259815216064,null,null,null,"",null,null,null,null,null,""]
[null,null,38,-4.2402400970458984,2.6495966911315918,null,null,null,"",null,null,null,null,null,""]
[null,null,39,-4.4147381782531738,2.3473577499389648,null,null,null,"",null,null,null,null,null,""]
[null,null,40,-4.5677275657653809,2.0336828231811523,null,null,null,"",null,null,null,null,null,""]
[null,null,41,-4.698462963104248,1.7101011276245117,null,null,null,"",null,null,null,null,null,""]
[null,null,42,-4.8063082695007324,1.378186821937561,null,null,null,"",null,null,null,null,null,""]
[null,null,43,-4.8907380104064941,1.0395580530166626,null,null,null,"",null,null,null,null,null,""]
[null,null,44,-4.9513401985168457,0.69586586952209473,null,null,null,"",null,null,null,null,null,""]
[null,null,45,-4.9878201484680176,0.34878233075141907,null,null,null,"",null,null,null,null,null,""]
[null,null,46,-5,-4.37113897078234E-7,null,null,null,"",null,null,null,null,null,""]
[null,null,47,-4.9878201484680176,-0.34878203272819519,null,null,null,"",null,null,null,null,null,""]
[null,null,48,-4.9513401985168457,-0.69586557149887085,null,null,null,"",null,null,null,null,null,""]
[null,null,49,-4.8907380104064941,-1.0395588874816895,null,null,null,"",null,null,null,null,null,""]
[null,null,50,-4.8063087463378906,-1.3781864643096924,null,null,null,"",null,null,null,null,null,""]
[null,null,51,-4.698462963104248,-1.7101007699966431,null,null,null,"",null,null,null,null,null,""]
[null,null,52,-4.5677270889282227,-2.0336837768554687,null,null,null,"",null,null,null,null,null,""]
[null,null,53,-4.4147381782531738,-2.3473575115203857,null,null,null,"",null,null,null,null,null,""]
[null,null,54,-4.2402405738830566,-2.6495964527130127,null,null,null,"",null,null,null,null,null,""]
[null,null,55,-4.0450844764709473,-2.9389266967773437,null,null,null,"",null,null,null,null,null,""]
[null,null,56,-3.8302223682403564,-3.2139377593994141,null,null,null,"",null,null,null,null,null,""]
[null,null,57,-3.5966989994049072,-3.4732918739318848,null,null,null,"",null,null,null,null,null,""]
[null,null,58,-3.3456525802612305,-3.7157244682312012,null,null,null,"",null,null,null,null,null,""]
[null,null,59,-3.0783076286315918,-3.9400537014007568,null,null,null,"",null,null,null,null,null,""]
[null,null,60,-2.7959644794464111,-4.1451878547668457,null,null,null,"",null,null,null,null,null,""]
[null,null,61,-2.4999995231628418,-4.3301272392272949,null,null,null,"",null,null,null,null,null,""]
[null,null,62,-2.1918549537658691,-4.4939708709716797,null,null,null,"",null,null,null,null,null,""]
[null,null,63,-1.873033881187439,-4.6359190940856934,null,null,null,"",null,null,null,null,null,""]
[null,null,64,-1.5450855493545532,-4.7552824020385742,null,null,null,"",null,null,null,null,null,""]
[null,null,65,-1.2096096277236938,-4.8514785766601563,null,null,null,"",null,null,null,null,null,""]
[null,null,66,-0.86824065446853638,-4.9240388870239258,null,null,null,"",null,null,null,null,null,""]
[null,null,{"$f":"IF(D74<>\"\",C73+1,\"\")","v":67},-0.52264165878295898,-4.9726095199584961,null,null,null,{"$f":"IF(J74<>\"\",I73+1,\"\")","v":""},null,null,null,null,null,{"$f":"IF(P74<>\"\",O73+1,\"\")","v":""}]
[null,null,68,-0.17449644207954407,-4.9969539642333984,null,null,null,"",null,null,null,null,null,""]
[null,null,69,0.17449656128883362,-4.9969539642333984,null,null,null,"",null,null,null,null,null,""]
[null,null,70,0.52264177799224854,-4.9726095199584961,null,null,null,"",null,null,null,null,null,""]
[null,null,71,0.86824077367782593,-4.9240388870239258,null,null,null,"",null,null,null,null,null,""]
[null,null,72,1.2096097469329834,-4.8514785766601563,null,null,null,"",null,null,null,null,null,""]
[null,null,73,1.5450856685638428,-4.7552824020385742,null,null,null,"",null,null,null,null,null,""]
[null,null,74,1.8730340003967285,-4.6359190940856934,null,null,null,"",null,null,null,null,null,""]
[null,null,75,2.1918549537658691,-4.4939703941345215,null,null,null,"",null,null,null,null,null,""]
[null,null,76,2.4999995231628418,-4.3301272392272949,null,null,null,"",null,null,null,null,null,""]
[null,null,77,2.7959644794464111,-4.1451878547668457,null,null,null,"",null,null,null,null,null,""]
[null,null,78,3.0783076286315918,-3.9400534629821777,null,null,null,"",null,null,null,null,null,""]
[null,null,79,3.3456535339355469,-3.7157235145568848,null,null,null,"",null,null,null,null,null,""]
[null,null,80,3.5966997146606445,-3.4732909202575684,null,null,null,"",null,null,null,null,null,""]
[null,null,81,3.8302216529846191,-3.2139387130737305,null,null,null,"",null,null,null,null,null,""]
[null,null,82,4.0450849533081055,-2.9389266967773437,null,null,null,"",null,null,null,null,null,""]
[null,null,83,4.2402405738830566,-2.6495962142944336,null,null,null,"",null,null,null,null,null,""]
[null,null,84,4.4147381782531738,-2.3473575115203857,null,null,null,"",null,null,null,null,null,""]
[null,null,85,4.5677275657653809,-2.0336825847625732,null,null,null,"",null,null,null,null,null,""]
[null,null,86,4.6984624862670898,-1.710101842880249,null,null,null,"",null,null,null,null,null,""]
[null,null,87,4.8063082695007324,-1.3781875371932983,null,null,null,"",null,null,null,null,null,""]
[null,null,88,4.8907380104064941,-1.0395587682723999,null,null,null,"",null,null,null,null,null,""]
[null,null,89,4.9513401985168457,-0.6958654522895813,null,null,null,"",null,null,null,null,null,""]
[null,null,90,4.9878201484680176,-0.34878191351890564,null,null,null,"",null,null,null,null,null,""]
[null,null,91,5,0,null,null,null,"",null,null,null,null,null,""]
[null,null,"",null,null,null,null,null,"",null,null,null,null,null,""]
[null,null,"",null,null,null,null,null,"",null,null,null,null,null,""]
[null,null,"",null,null,null,null,null,"",null,null,null,null,null,""]
[null,null,"",null,null,null,null,null,"",null,null,null,null,null,""]
[null,null,"",null,null,null,null,null,"",null,null,null,null,null,""]
[null,null,"",null,null,null,null,null,"",null,null,null,null,null,""]
[null,null,"",null,null,null,null,null,"",null,null,null,null,null,""]
[null,null,"",null,null,null,null,null,"",null,null,null,null,null,""]
[null,null,"",null,null,null,null,null,"",null,null,null,null,null,""]
[null,null,"",null,null,null,null,null,"",null,null,null,null,null,""]
[null,null,"",null,null,null,null,null,"",null,null,null,null,null,""]
[null,null,"",null,null,null,null,null,"",null,null,null,null,null,""]
[null,null,"",null,null,null,null,null,"",null,null,null,null,null,""]
[null,null,"",null,null,null,null,null,"",null,null,null,null,null,""]
[null,null,"",null,null,null,null,null,"",null,null,null,null,null,""]
[null,null,"",null,null,null,null,null,"",null,null,null,null,null,""]
[null,null,"",null,null,null,null,null,"",null,null,null,null,null,""]
[null,null,"",null,null,null,null,null,"",null,null,null,null,null,""]
[null,null,"",null,null,null,null,null,"",null,null,null,null,null,""]
[null,null,"",null,null,null,null,null,"",null,null,null,null,null,""]
[null,null,"",null,null,null,null,null,"",null,null,null,null,null,""]
[null,null,"",null,null,null,null,null,"",null,null,null,null,null,""]
[null,null,"",null,null,null,null,null,"",null,null,null,null,null,""]
[null,null,"",null,null,null,null,null,"",null,null,null,null,null,""]
[null,null,"",null,null,null,null,null,"",null,null,null,null,null,""]
[null,null,"",null,null,null,null,null,"",null,null,null,null,null,""]
[null,null,"",null,null,null,null,null,"",null,null,null,null,null,""]
[null,null,"",null,null,null,null,null,"",null,null,null,null,null,""]
[null,null,"",null,null,null,null,null,"",null,null,null,null,null,""]
[null,null,"",null,null,null,null,null,"",null,null,null,null,null,""]
[null,null,"",null,null,null,null,null,"",null,null,null,null,null,""]
[null,null,"",null,null,null,null,null,"",null,null,null,null,null,""]
[null,null,"",null,null,null,null,null,"",null,null,null,null,null,""]
[null,null,"",null,null,null,null,null,"",null,null,null,null,null,""]
[null,null,"",null,null,null,null,null,"",null,null,null,null,null,""]
[null,null,"",null,null,null,null,null,"",null,null,null,null,null,""]
[null,null,"",null,null,null,null,null,"",null,null,null,null,null,""]
[null,null,"",null,null,null,null,null,"",null,null,null,null,null,""]
[null,null,"",null,null,null,null,null,"",null,null,null,null,null,""]
[null,null,{"$f":"IF(D138<>\"\",C137+1,\"\")","v":""},null,null,null,null,null,{"$f":"IF(J138<>\"\",I137+1,\"\")","v":""},null,null,null,null,null,{"$f":"IF(P138<>\"\",O137+1,\"\")","v":""}]
[null,null,"",null,null,null,null,null,"",null,null,null,null,null,""]
[null,null,"",null,null,null,null,null,"",null,null,null,null,null,""]
[null,null,"",null,null,null,null,null,"",null,null,null,null,null,""]
[null,null,"",null,null,null,null,null,"",null,null,null,null,null,""]
[null,null,"",null,null,null,null,null,"",null,null,null,null,null,""]
[null,null,"",null,null,null,null,null,"",null,null,null,null,null,""]
[null,null,"",null,null,null,null,null,"",null,null,null,null,null,""]
[null,null,"",null,null,null,null,null,"",null,null,null,null,null,""]
[null,null,"",null,null,null,null,null,"",null,null,null,null,null,""]
[null,null,"",null,null,null,null,null,"",null,null,null,null,null,""]
[null,null,"",null,null,null,null,null,"",null,null,null,null,null,""]
[null,null,"",null,null,null,null,null,"",null,null,null,null,null,""]
[null,null,"",null,null,null,null,null,"",null,null,null,null,null,""]
[null,null,"",null,null,null,null,null,"",null,null,null,null,null,""]
[null,null,"",null,null,null,null,null,"",null,null,null,null,null,""]
[null,null,"",null,null,null,null,null,"",null,null,null,null,null,""]
[null,null,"",null,null,null,null,null,"",null,null,null,null,null,""]
[null,null,"",null,null,null,null,null,"",null,null,null,null,null,""]
[null,null,"",null,null,null,null,null,"",null,null,null,null,null,""]
[null,null,"",null,null,null,null,null,"",null,null,null,null,null,""]
[null,null,"",null,null,null,null,null,"",null,null,null,null,null,""]
[null,null,"",null,null,null,null,null,"",null,null,null,null,null,""]
[null,null,"",null,null,null,null,null,"",null,null,null,null,null,""]
[null,null,"",null,null,null,null,null,"",null,null,null,null,null,""]
[null,null,"",null,null,null,null,null,"",null,null,null,null,null,""]
[null,null,"",null,null,null,null,null,"",null,null,null,null,null,""]
[null,null,"",null,null,null,null,null,"",null,null,null,null,null,""]
[null,null,"",null,null,null,null,null,"",null,null,null,null,null,""]
[null,null,"",null,null,null,null,null,"",null,null,null,null,null,""]
[null,null,"",null,null,null,null,null,"",null,null,null,null,null,""]
[null,null,"",null,null,null,null,null,"",null,null,null,null,null,""]
[null,null,"",null,null,null,null,null,"",null,null,null,null,null,""]
[null,null,"",null,null,null,null,null,"",null,null,null,null,null,""]
[null,null,"",null,null,null,null,null,"",null,null,null,null,null,""]
[null,null,"",null,null,null,null,null,"",null,null,null,null,null,""]
[null,null,"",null,null,null,null,null,"",null,null,null,null,null,""]
[null,null,"",null,null,null,null,null,"",null,null,null,null,null,""]
[null,null,"",null,null,null,null,null,"",null,null,null,null,null,""]
[null,null,"",null,null,null,null,null,"",null,null,null,null,null,""]
[null,null,"",null,null,null,null,null,"",null,null,null,null,null,""]
[null,null,"",null,null,null,null,null,"",null,null,null,null,null,""]
[null,null,"",null,null,null,null,null,"",null,null,null,null,null,""]
[null,null,"",null,null,null,null,null,"",null,null,null,null,null,""]
[null,null,"",null,null,null,null,null,"",null,null,null,null,null,""]
[null,null,"",null,null,null,null,null,"",null,null,null,null,null,""]
[null,null,"",null,null,null,null,null,"",null,null,null,null,null,""]
[null,null,"",null,null,null,null,null,"",null,null,null,null,null,""]
[null,null,"",null,null,null,null,null,"",null,null,null,null,null,""]
[null,null,"",null,null,null,null,null,"",null,null,null,null,null,""]
[null,null,"",null,null,null,null,null,"",null,null,null,null,null,""]
[null,null,"",null,null,null,null,null,"",null,null,null,null,null,""]
[null,null,"",null,null,null,null,null,"",null,null,null,null,null,""]
[null,null,"",null,null,null,null,null,"",null,null,null,null,null,""]
[null,null,"",null,null,null,null,null,"",null,null,null,null,null,""]
[null,null,"",null,null,null,null,null,"",null,null,null,null,null,""]
[null,null,"",null,null,null,null,null,"",null,null,null,null,null,""]
[null,null,"",null,null,null,null,null,"",null,null,null,null,null,""]
[null,null,"",null,null,null,null,null,"",null,null,null,null,null,""]
[null,null,"",null,null,null,null,null,"",null,null,null,null,null,""]
[null,null,"",null,null,null,null,null,"",null,null,null,null,null,""]
[null,null,"",null,null,null,null,null,"",null,null,null,null,null,""]
[null,null,"",null,null,null,null,null,"",null,null,null,null,null,""]
[null,null,"",null,null,null,null,null,"",null,null,null,null,null,""]
[null,null,{"$f":"IF(D202<>\"\",C201+1,\"\")","v":""},null,null,null,null,null,{"$f":"IF(J202<>\"\",I201+1,\"\")","v":""},null,null,null,null,null,{"$f":"IF(P202<>\"\",O201+1,\"\")","v":""}]
[null,null,"",null,null,null,null,null,"",null,null,null,null,null,""]
[null,null,"",null,null,null,null,null,"",null,null,null,null,null,""]
[null,null,"",null,null,null,null,null,"",null,null,null,null,null,""]
[null,null,"",null,null,null,null,null,"",null,null,null,null,null,""]
[null,null,"",null,null,null,null,null,"",null,null,null,null,null,""]
[null,null,"",null,null,null,null,null,"",null,null,null,null,null,""]
[null,null,"",null,null,null,null,null,"",null,null,null,null,null,""]
[null,null,"",null,null,null,null,null,"",null,null,null,null,null,""]
[null,null,"",null,null,null,null,null,"",null,null,null,null,null,""]
[null,null,"",null,null,null,null,null,"",null,null,null,null,null,""]
[null,null,"",null,null,null,null,null,"",null,null,null,null,null,""]
[null,null,"",null,null,null,null,null,"",null,null,null,null,null,""]
[null,null,"",null,null,null,null,null,"",null,null,null,null,null,""]
[null,null,"",null,null,null,null,null,"",null,null,null,null,null,""]
[null,null,"",null,null,null,null,null,"",null,null,null,null,null,""]
[null,null,"",null,null,null,null,null,"",null,null,null,null,null,""]
[null,null,"",null,null,null,null,null,"",null,null,null,null,null,""]
[null,null,"",null,null,null,null,null,"",null,null,null,null,null,""]
[null,null,"",null,null,null,null,null,"",null,null,null,null,null,""]
[null,null,"",null,null,null,null,null,"",null,null,null,null,null,""]
[null,null,"",null,null,null,null,null,"",null,null,null,null,null,""]
[null,null,"",null,null,null,null,null,"",null,null,null,null,null,""]
[null,null,"",null,null,null,null,null,"",null,null,null,null,null,""]
[null,null,"",null,null,null,null,null,"",null,null,null,null,null,""]
[null,null,"",null,null,null,null,null,"",null,null,null,null,null,""]
[null,null,"",null,null,null,null,null,"",null,null,null,null,null,""]
[null,null,"",null,null,null,null,null,"",null,null,null,null,null,""]
[null,null,"",null,null,null,null,null,"",null,null,null,null,null,""]
[null,null,"",null,null,null,null,null,"",null,null,null,null,null,""]
[null,null,"",null,null,null,null,null,"",null,null,null,null,null,""]
[null,null,"",null,null,null,null,null,"",null,null,null,null,null,""]
[null,null,"",null,null,null,null,null,"",null,null,null,null,null,""]
[null,null,"",null,null,null,null,null,"",null,null,null,null,null,""]
[null,null,"",null,null,null,null,null,"",null,null,null,null,null,""]
[null,null,"",null,null,null,null,null,"",null,null,null,null,null,""]
[null,null,"",null,null,null,null,null,"",null,null,null,null,null,""]
[null,null,"",null,null,null,null,null,"",null,null,null,null,null,""]
[null,null,"",null,null,null,null,null,"",null,null,null,null,null,""]
[null,null,"",null,null,null,null,null,"",null,null,null,null,null,""]
[null,null,"",null,null,null,null,null,"",null,null,null,null,null,""]
[null,null,"",null,null,null,null,null,"",null,null,null,null,null,""]
[null,null,"",null,null,null,null,null,"",null,null,null,null,null,""]
[null,null,"",null,null,null,null,null,"",null,null,null,null,null,""]
[null,null,"",null,null,null,null,null,"",null,null,null,null,null,""]
[null,null,"",null,null,null,null,null,"",null,null,null,null,null,""]
[null,null,"",null,null,null,null,null,"",null,null,null,null,null,""]
[null,null,"",null,null,null,null,null,"",null,null,null,null,null,""]
[null,null,"",null,null,null,null,null,"",null,null,null,null,null,""]
[null,null,"",null,null,null,null,null,"",null,null,null,null,null,""]
[null,null,"",null,null,null,null,null,"",null,null,null,null,null,""]
[null,null,"",null,null,null,null,null,"",null,null,null,null,null,""]
[null,null,"",null,null,null,null,null,"",null,null,null,null,null,""]
[null,null,"",null,null,null,null,null,"",null,null,null,null,null,""]
[null,null,"",null,null,null,null,null,"",null,null,null,null,null,""]
[null,null,"",null,null,null,null,null,"",null,null,null,null,null,""]
[null,null,"",null,null,null,null,null,"",null,null,null,null,null,""]
[null,null,"",null,null,null,null,null,"",null,null,null,null,null,""]
[null,null,"",null,null,null,null,null,"",null,null,null,null,null,""]
[null,null,"",null,null,null,null,null,"",null,null,null,null,null,""]
[null,null,"",null,null,null,null,null,"",null,null,null,null,null,""]
[null,null,"",null,null,null,null,null,"",null,null,null,null,null,""]
[null,null,"",null,null,null,null,null,"",null,null,null,null,null,""]
[null,null,"",null,null,null,null,null,"",null,null,null,null,null,""]
[null,null,{"$f":"IF(D266<>\"\",C265+1,\"\")","v":""},null,null,null,null,null,{"$f":"IF(J266<>\"\",I265+1,\"\")","v":""},null,null,null,null,null,{"$f":"IF(P266<>\"\",O265+1,\"\")","v":""}]
[null,null,"",null,null,null,null,null,"",null,null,null,null,null,""]
[null,null,"",null,null,null,null,null,"",null,null,null,null,null,""]
[null,null,"",null,null,null,null,null,"",null,null,null,null,null,""]
[null,null,"",null,null,null,null,null,"",null,null,null,null,null,""]
[null,null,"",null,null,null,null,null,"",null,null,null,null,null,""]
[null,null,"",null,null,null,null,null,"",null,null,null,null,null,""]
[null,null,"",null,null,null,null,null,"",null,null,null,null,null,""]
[null,null,"",null,null,null,null,null,"",null,null,null,null,null,""]
[null,null,"",null,null,null,null,null,"",null,null,null,null,null,""]
[null,null,"",null,null,null,null,null,"",null,null,null,null,null,""]
[null,null,"",null,null,null,null,null,"",null,null,null,null,null,""]
[null,null,"",null,null,null,null,null,"",null,null,null,null,null,""]
[null,null,"",null,null,null,null,null,"",null,null,null,null,null,""]
[null,null,"",null,null,null,null,null,"",null,null,null,null,null,""]
[null,null,"",null,null,null,null,null,"",null,null,null,null,null,""]
[null,null,"",null,null,null,null,null,"",null,null,null,null,null,""]
[null,null,"",null,null,null,null,null,"",null,null,null,null,null,""]
[null,null,"",null,null,null,null,null,"",null,null,null,null,null,""]
[null,null,"",null,null,null,null,null,"",null,null,null,null,null,""]
[null,null,"",null,null,null,null,null,"",null,null,null,null,null,""]
[null,null,"",null,null,null,null,null,"",null,null,null,null,null,""]
[null,null,"",null,null,null,null,null,"",null,null,null,null,null,""]
[null,null,"",null,null,null,null,null,"",null,null,null,null,null,""]
[null,null,"",null,null,null,null,null,"",null,null,null,null,null,""]
[null,null,"",null,null,null,null,null,"",null,null,null,null,null,""]
[null,null,"",null,null,null,null,null,"",null,null,null,null,null,""]
[null,null,"",null,null,null,null,null,"",null,null,null,null,null,""]
[null,null,"",null,null,null,null,null,"",null,null,null,null,null,""]
[null,null,"",null,null,null,null,null,"",null,null,null,null,null,""]
[null,null,"",null,null,null,null,null,"",null,null,null,null,null,""]
[null,null,"",null,null,null,null,null,"",null,null,null,null,null,""]
[null,null,"",null,null,null,null,null,"",null,null,null,null,null,""]
[null,null,"",null,null,null,null,null,"",null,null,null,null,null,""]
[null,null,"",null,null,null,null,null,"",null,null,null,null,null,""]
[null,null,"",null,null,null,null,null,"",null,null,null,null,null,""]
[null,null,"",null,null,null,null,null,"",null,null,null,null,null,""]
[null,null,"",null,null,null,null,null,"",null,null,null,null,null,""]
[null,null,"",null,null,null,null,null,"",null,null,null,null,null,""]
[null,null,"",null,null,null,null,null,"",null,null,null,null,null,""]
[null,null,"",null,null,null,null,null,"",null,null,null,null,null,""]
[null,null,"",null,null,null,null,null,"",null,null,null,null,null,""]
[null,null,"",null,null,null,null,null,"",null,null,null,null,null,""]
[null,null,"",null,null,null,null,null,"",null,null,null,null,null,""]
[null,null,"",null,null,null,null,null,"",null,null,null,null,null,""]
[null,null,"",null,null,null,null,null,"",null,null,null,null,null,""]
[null,null,"",null,null,null,null,null,"",null,null,null,null,null,""]
[null,null,"",null,null,null,null,null,"",null,null,null,null,null,""]
[null,null,"",null,null,null,null,null,"",null,null,null,null,null,""]
[null,null,"",null,null,null,null,null,"",null,null,null,null,null,""]
[null,null,"",null,null,null,null,null,"",null,null,null,null,null,""]
[null,null,"",null,null,null,null,null,"",null,null,null,null,null,""]
[null,null,"",null,null,null,null,null,"",null,null,null,null,null,""]
[null,null,"",null,null,null,null,null,"",null,null,null,null,null,""]
[null,null,"",null,null,null,null,null,"",null,null,null,null,null,""]
[null,null,"",null,null,null,null,null,"",null,null,null,null,null,""]
[null,null,"",null,null,null,null,null,"",null,null,null,null,null,""]
[null,null,"",null,null,null,null,null,"",null,null,null,null,null,""]
[null,null,"",null,null,null,null,null,"",null,null,null,null,null,""]
[null,null,"",null,null,null,null,null,"",null,null,null,null,null,""]
[null,null,"",null,null,null,null,null,"",null,null,null,null,null,""]
[null,null,"",null,null,null,null,null,"",null,null,null,null,null,""]
[null,null,"",null,null,null,null,null,"",null,null,null,null,null,""]
[null,null,"",null,null,null,null,null,"",null,null,null,null,null,""]
[null,null,{"$f":"IF(D330<>\"\",C329+1,\"\")","v":""},null,null,null,null,null,{"$f":"IF(J330<>\"\",I329+1,\"\")","v":""},null,null,null,null,null,{"$f":"IF(P330<>\"\",O329+1,\"\")","v":""}]
[null,null,"",null,null,null,null,null,"",null,null,null,null,null,""]
[null,null,"",null,null,null,null,null,"",null,null,null,null,null,""]
[null,null,"",null,null,null,null,null,"",null,null,null,null,null,""]
[null,null,"",null,null,null,null,null,"",null,null,null,null,null,""]
[null,null,"",null,null,null,null,null,"",null,null,null,null,null,""]
[null,null,"",null,null,null,null,null,"",null,null,null,null,null,""]
[null,null,"",null,null,null,null,null,"",null,null,null,null,null,""]
[null,null,"",null,null,null,null,null,"",null,null,null,null,null,""]
[null,null,"",null,null,null,null,null,"",null,null,null,null,null,""]
[null,null,"",null,null,null,null,null,"",null,null,null,null,null,""]
[null,null,"",null,null,null,null,null,"",null,null,null,null,null,""]
[null,null,"",null,null,null,null,null,"",null,null,null,null,null,""]
[null,null,"",null,null,null,null,null,"",null,null,null,null,null,""]
[null,null,"",null,null,null,null,null,"",null,null,null,null,null,""]
[null,null,"",null,null,null,null,null,"",null,null,null,null,null,""]
[null,null,"",null,null,null,null,null,"",null,null,null,null,null,""]
[null,null,"",null,null,null,null,null,"",null,null,null,null,null,""]
[null,null,"",null,null,null,null,null,"",null,null,null,null,null,""]
[null,null,"",null,null,null,null,null,"",null,null,null,null,null,""]
[null,null,"",null,null,null,null,null,"",null,null,null,null,null,""]
[null,null,"",null,null,null,null,null,"",null,null,null,null,null,""]
[null,null,"",null,null,null,null,null,"",null,null,null,null,null,""]
[null,null,"",null,null,null,null,null,"",null,null,null,null,null,""]
[null,null,"",null,null,null,null,null,"",null,null,null,null,null,""]
[null,null,"",null,null,null,null,null,"",null,null,null,null,null,""]
[null,null,"",null,null,null,null,null,"",null,null,null,null,null,""]
[null,null,"",null,null,null,null,null,"",null,null,null,null,null,""]
[null,null,"",null,null,null,null,null,"",null,null,null,null,null,""]
[null,null,"",null,null,null,null,null,"",null,null,null,null,null,""]
[null,null,"",null,null,null,null,null,"",null,null,null,null,null,""]
[null,null,"",null,null,null,null,null,"",null,null,null,null,null,""]
[null,null,"",null,null,null,null,null,"",null,null,null,null,null,""]
[null,null,"",null,null,null,null,null,"",null,null,null,null,null,""]
[null,null,"",null,null,null,null,null,"",null,null,null,null,null,""]
[null,null,"",null,null,null,null,null,"",null,null,null,null,null,""]
[null,null,"",null,null,null,null,null,"",null,null,null,null,null,""]
[null,null,"",null,null,null,null,null,"",null,null,null,null,null,""]
[null,null,"",null,null,null,null,null,"",null,null,null,null,null,""]
[null,null,"",null,null,null,null,null,"",null,null,null,null,null,""]
[null,null,"",null,null,null,null,null,"",null,null,null,null,null,""]
[null,null,"",null,null,null,null,null,"",null,null,null,null,null,""]
[null,null,"",null,null,null,null,null,"",null,null,null,null,null,""]
[null,null,"",null,null,null,null,null,"",null,null,null,null,null,""]
[null,null,"",null,null,null,null,null,"",null,null,null,null,null,""]
[null,null,"",null,null,null,null,null,"",null,null,null,null,null,""]
[null,null,"",null,null,null,null,null,"",null,null,null,null,null,""]
[null,null,"",null,null,null,null,null,"",null,null,null,null,null,""]
[null,null,"",null,null,null,null,null,"",null,null,null,null,null,""]
[null,null,"",null,null,null,null,null,"",null,null,null,null,null,""]
[null,null,"",null,null,null,null,null,"",null,null,null,null,null,""]
[null,null,"",null,null,null,null,null,"",null,null,null,null,null,""]
[null,null,"",null,null,null,null,null,"",null,null,null,null,null,""]
[null,null,"",null,null,null,null,null,"",null,null,null,null,null,""]
[null,null,"",null,null,null,null,null,"",null,null,null,null,null,""]
[null,null,"",null,null,null,null,null,"",null,null,null,null,null,""]
[null,null,"",null,null,null,null,null,"",null,null,null,null,null,""]
[null,null,"",null,null,null,null,null,"",null,null,null,null,null,""]
[null,null,"",null,null,null,null,null,"",null,null,null,null,null,""]
[null,null,"",null,null,null,null,null,"",null,null,null,null,null,""]
[null,null,"",null,null,null,null,null,"",null,null,null,null,null,""]
[null,null,"",null,null,null,null,null,"",null,null,null,null,null,""]
[null,null,"",null,null,null,null,null,"",null,null,null,null,null,""]
[null,null,"",null,null,null,null,null,"",null,null,null,null,null,""]
[null,null,{"$f":"IF(D394<>\"\",C393+1,\"\")","v":""},null,null,null,null,null,{"$f":"IF(J394<>\"\",I393+1,\"\")","v":""},null,null,null,null,null,{"$f":"IF(P394<>\"\",O393+1,\"\")","v":""}]
[null,null,"",null,null,null,null,null,"",null,null,null,null,null,""]
[null,null,"",null,null,null,null,null,"",null,null,null,null,null,""]
[null,null,"",null,null,null,null,null,"",null,null,null,null,null,""]
[null,null,"",null,null,null,null,null,"",null,null,null,null,null,""]
[null,null,"",null,null,null,null,null,"",null,null,null,null,null,""]
[null,null,"",null,null,null,null,null,"",null,null,null,null,null,""]
[null,null,"",null,null,null,null,null,"",null,null,null,null,null,""]
[null,null,"",null,null,null,null,null,"",null,null,null,null,null,""]
[null,null,"",null,null,null,null,null,"",null,null,null,null,null,""]
[null,null,"",null,null,null,null,null,"",null,null,null,null,null,""]
[null,null,"",null,null,null,null,null,"",null,null,null,null,null,""]
[null,null,"",null,null,null,null,null,"",null,null,null,null,null,""]
[null,null,"",null,null,null,null,null,"",null,null,null,null,null,""]
[null,null,"",null,null,null,null,null,"",null,null,null,null,null,""]
[null,null,"",null,null,null,null,null,"",null,null,null,null,null,""]
[null,null,"",null,null,null,null,null,"",null,null,null,null,null,""]
[null,null,"",null,null,null,null,null,"",null,null,null,null,null,""]
[null,null,"",null,null,null,null,null,"",null,null,null,null,null,""]
[null,null,"",null,null,null,null,null,"",null,null,null,null,null,""]
[null,null,"",null,null,null,null,null,"",null,null,null,null,null,""]
[null,null,"",null,null,null,null,null,"",null,null,null,null,null,""]
[null,null,"",null,null,null,null,null,"",null,null,null,null,null,""]
[null,null,"",null,null,null,null,null,"",null,null,null,null,null,""]
[null,null,"",null,null,null,null,null,"",null,null,null,null,null,""]
[null,null,"",null,null,null,null,null,"",null,null,null,null,null,""]
[null,null,"",null,null,null,null,null,"",null,null,null,null,null,""]
[null,null,"",null,null,null,null,null,"",null,null,null,null,null,""]
[null,null,"",null,null,null,null,null,"",null,null,null,null,null,""]
[null,null,"",null,null,null,null,null,"",null,null,null,null,null,""]
[null,null,"",null,null,null,null,null,"",null,null,null,null,null,""]
[null,null,"",null,null,null,null,null,"",null,null,null,null,null,""]
[null,null,"",null,null,null,null,null,"",null,null,null,null,null,""]
[null,null,"",null,null,null,null,null,"",null,null,null,null,null,""]
[null,null,"",null,null,null,null,null,"",null,null,null,null,null,""]
[null,null,"",null,null,null,null,null,"",null,null,null,null,null,""]
[null,null,"",null,null,null,null,null,"",null,null,null,null,null,""]
[null,null,"",null,null,null,null,null,"",null,null,null,null,null,""]
[null,null,"",null,null,null,null,null,"",null,null,null,null,null,""]
[null,null,"",null,null,null,null,null,"",null,null,null,null,null,""]
[null,null,"",null,null,null,null,null,"",null,null,null,null,null,""]
[null,null,"",null,null,null,null,null,"",null,null,null,null,null,""]
[null,null,"",null,null,null,null,null,"",null,null,null,null,null,""]
[null,null,"",null,null,null,null,null,"",null,null,null,null,null,""]
[null,null,"",null,null,null,null,null,"",null,null,null,null,null,""]
[null,null,"",null,null,null,null,null,"",null,null,null,null,null,""]
[null,null,"",null,null,null,null,null,"",null,null,null,null,null,""]
[null,null,"",null,null,null,null,null,"",null,null,null,null,null,""]
[null,null,"",null,null,null,null,null,"",null,null,null,null,null,""]
[null,null,"",null,null,null,null,null,"",null,null,null,null,null,""]
[null,null,"",null,null,null,null,null,"",null,null,null,null,null,""]
[null,null,"",null,null,null,null,null,"",null,null,null,null,null,""]
[null,null,"",null,null,null,null,null,"",null,null,null,null,null,""]
[null,null,"",null,null,null,null,null,"",null,null,null,null,null,""]
[null,null,"",null,null,null,null,null,"",null,null,null,null,null,""]
[null,null,"",null,null,null,null,null,"",null,null,null,null,null,""]
[null,null,"",null,null,null,null,null,"",null,null,null,null,null,""]
[null,null,"",null,null,null,null,null,"",null,null,null,null,null,""]
[null,null,"",null,null,null,null,null,"",null,null,null,null,null,""]
[null,null,"",null,null,null,null,null,"",null,null,null,null,null,""]
[null,null,"",null,null,null,null,null,"",null,null,null,null,null,""]
[null,null,"",null,null,null,null,null,"",null,null,null,null,null,""]
[null,null,"",null,null,null,null,null,"",null,null,null,null,null,""]
[null,null,"",null,null,null,null,null,"",null,null,null,null,null,""]
[null,null,{"$f":"IF(D458<>\"\",C457+1,\"\")","v":""},null,null,null,null,null,{"$f":"IF(J458<>\"\",I457+1,\"\")","v":""},null,null,null,null,null,{"$f":"IF(P458<>\"\",O457+1,\"\")","v":""}]
[null,null,"",null,null,null,null,null,"",null,null,null,null,null,""]
[null,null,"",null,null,null,null,null,"",null,null,null,null,null,""]
[null,null,"",null,null,null,null,null,"",null,null,null,null,null,""]
[null,null,"",null,null,null,null,null,"",null,null,null,null,null,""]
[null,null,"",null,null,null,null,null,"",null,null,null,null,null,""]
[null,null,"",null,null,null,null,null,"",null,null,null,null,null,""]
[null,null,"",null,null,null,null,null,"",null,null,null,null,null,""]
[null,null,"",null,null,null,null,null,"",null,null,null,null,null,""]
[null,null,"",null,null,null,null,null,"",null,null,null,null,null,""]
[null,null,"",null,null,null,null,null,"",null,null,null,null,null,""]
[null,null,"",null,null,null,null,null,"",null,null,null,null,null,""]
[null,null,"",null,null,null,null,null,"",null,null,null,null,null,""]
[null,null,"",null,null,null,null,null,"",null,null,null,null,null,""]
[null,null,"",null,null,null,null,null,"",null,null,null,null,null,""]
[null,null,"",null,null,null,null,null,"",null,null,null,null,null,""]
[null,null,"",null,null,null,null,null,"",null,null,null,null,null,""]
[null,null,"",null,null,null,null,null,"",null,null,null,null,null,""]
[null,null,"",null,null,null,null,null,"",null,null,null,null,null,""]
[null,null,"",null,null,null,null,null,"",null,null,null,null,null,""]
[null,null,"",null,null,null,null,null,"",null,null,null,null,null,""]
[null,null,"",null,null,null,null,null,"",null,null,null,null,null,""]
[null,null,"",null,null,null,null,null,"",null,null,null,null,null,""]
[null,null,"",null,null,null,null,null,"",null,null,null,null,null,""]
[null,null,"",null,null,null,null,null,"",null,null,null,null,null,""]
[null,null,"",null,null,null,null,null,"",null,null,null,null,null,""]
[null,null,"",null,null,null,null,null,"",null,null,null,null,null,""]
[null,null,"",null,null,null,null,null,"",null,null,null,null,null,""]
[null,null,"",null,null,null,null,null,"",null,null,null,null,null,""]
[null,null,"",null,null,null,null,null,"",null,null,null,null,null,""]
[null,null,"",null,null,null,null,null,"",null,null,null,null,null,""]
[null,null,"",null,null,null,null,null,"",null,null,null,null,null,""]
[null,null,"",null,null,null,null,null,"",null,null,null,null,null,""]
[null,null,"",null,null,null,null,null,"",null,null,null,null,null,""]
[null,null,"",null,null,null,null,null,"",null,null,null,null,null,""]
[null,null,"",null,null,null,null,null,"",null,null,null,null,null,""]
[null,null,"",null,null,null,null,null,"",null,null,null,null,null,""]
[null,null,"",null,null,null,null,null,"",null,null,null,null,null,""]
[null,null,"",null,null,null,null,null,"",null,null,null,null,null,""]
[null,null,"",null,null,null,null,null,"",null,null,null,null,null,""]
[null,null,"",null,null,null,null,null,"",null,null,null,null,null,""]
[null,null,"",null,null,null,null,null,"",null,null,null,null,null,""]
[null,null,"",null,null,null,null,null,"",null,null,null,null,null,""]

{"sheet":"GenInputFile","index":1,"n_rows":30,"n_cols":37,"rows_kept":30,"cut":false,"hidden":false,"merged":[[1,21,1,22],[3,1,3,2],[3,4,3,5],[3,7,3,8],[3,11,3,12],[32,1,32,4],[32,5,32,8],[27,15,27,16],[1,1,1,8],[1,10,1,13],[24,1,24,8],[29,1,29,4],[29,5,29,8],[26,15,26,16],[1,15,1,18],[20,16,20,19],[24,15,24,18]]}
[]
[null,"Material data definition ",null,null,null,null,null,null,null,null,"Other parameters",null,null,null,null,"Optimization parameters",null,null,null,null,null,"Geometry files",null,null,null,null,null,null,null,null,null,null,null,null,null,"MgCa0.8","CalcMode"]
[null,null,null,null,null,null,null,null,null,null,null,null,null,null,null,null,null,null,null,null,null,null,null,null,null,null,null,null,null,null,null,null,null,null,null,"Ax30","TaskMode"]
[null,"Yeld stress",null,null,"Fracture model",null,null,"Thermophysical data",null,null,null,"Geometrical data",null,null,null,null,"v","t_wp","H_prech",null,null,"Nr of files",1,null,null,null,null,null,null,null,null,null,null,null,null,"ZEK100"]
[null,null,null,null,null,null,null,null,null,null,null,null,null,null,null,"Nr of war",1,1,1,null,null,1,"test1.crs",null,null,null,null,null,null,null,null,null,null,null,null,"LA63"]
[null,"Kod",2,null,"Kod",1,null,"c",1046,null,null,"H_cont",30,null,null,1,1,450,"0.0",null,null,2,"test2.crs"]
[null,"K0",317.61470000000003,null,"d1",3.3134295000000001E-2,null,"r",2710,null,null,"H_pojas",0,null,null,2,null,null,null,null,null,3,"test3.crs"]
[null,"m1",-0.42899999999999999,null,"d2",2.130141493,null,"k",188,null,null,"R_fillet",0.5,null,null,3,null,null,null,null,null,4,"test4.crs"]
[null,"m2",5.5E-2,null,"d3",1.1671159E-2,null,"ts",660,null,null,"H_fillet",5,null,null,4,null,null,null,null,null,5,"test5.crs"]
[null,"m3",8.8999999999999996E-2,null,"d4",-0.31299709599999997,null,null,null,null,null,"L_fillet",5,null,null,5,null,null,null,null,null,6]
[null,"m4",0,null,"d5",0,null,null,null,null,null,"R_fillet_fk",0,null,null,6,null,null,null,null,null,7]
[null,"m5",0,null,"d6",0,null,null,null,null,null,"H_fillet_fk",0,null,null,7,null,null,null,null,null,8]
[null,"m6",0,null,"d7",0,null,null,null,null,null,"L_fillet_fk",0,null,null,8,null,null,null,null,null,8]
[null,"m7",0,null,"d8",0,null,null,null,null,null,null,null,null,null,9,null,null,null,null,null,10]
[null,"m8",0,null,"d9",0,null,null,null,null,null,null,null,null,null,10]
[null,"m9",0,null,"d10",0,null,null,null,null,null,"Numerical parameters"]
[null,"m10",0,null,"d11",0]
[null,"m11",0,null,"d12",0,null,null,null,null,null,"K_prof_3d",2]
[null,"m12",0,null,"d13",0,null,null,null,null,null,"K_prof",2]
[null,"m13",0,null,"d14",0,null,null,null,null,null,"Tip_proc",1]
[null,"m14",0,null,"d15",0]
[null,"m15",0,null,null,null,null,null,null,null,null,"Extrusion parameters"]
[]
[null,null,null,null,null,null,null,null,null,null,null,"Tool_temp",300]
[null,"Yield stress function",null,null,null,null,null,null,null,null,null,"H_k",200,null,null,"Generation of input file"]
[null,null,null,null,null,null,null,null,null,null,null,"Alfa",2000]
[null,null,null,null,null,null,null,null,null,null,null,"mi_k",0,null,null,"File name"]
[null,null,null,null,null,null,null,null,null,null,null,"mi_m",0,null,null,"indata.extr"]
[null,null,null,null,null,null,null,null,null,null,null,"mi_chanel",0]
[null,"Damage criterion",null,null,null,"Critical deformation function"]